bitfinex/quotes_ETHUSD_20250328
["timestamp","ask_amount","ask_price","bid_price","bid_amount"]
[1743121174734,0.67447047,2002.4,2002.3,4.99411]
[1743121175042,3.7542,2002.7,2002.3,9.98815]
[1743121175229,0.6747153,2002.4,2002.3,4.99404]
[1743121175405,8.74755,2002.7,2002.3,4.99404]
[1743121175610,0.6747153,2002.4,2002.3,4.99404]
[1743121175810,16.76591901,2002.7,2002.3,4.99404]
[1743121176317,0.67475723,2002.6,2002.3,4.99404]
[1743121176707,5.66825723,2002.6,2002.3,4.99404]
[1743121181041,0.67475723,2002.6,2002.3,4.99404]
[1743121182043,0.67475723,2002.6,2002.3,19.49404]
[1743121182210,0.67475723,2002.6,2002.3,27.1438249]
[1743121182540,0.67475723,2002.6,2002.3,22.1496949]
[1743121182842,0.67475723,2002.6,2002.4,4.99398]
[1743121184238,0.67475723,2002.6,2002.5,4.99375]
[1743121184522,0.67475723,2002.6,2002.5,5.54375]
[1743121184738,6.7814,2003.1,2002.7,4.99307]
[1743121184930,0.67530006,2003.0,2002.7,4.99307]
[1743121185527,0.67530006,2003.0,2002.7,9.98615]
[1743121185809,0.67530006,2003.0,2002.8,14.5]
[1743121186546,5.76368,2003.1,2002.8,14.5]
[1743121187748,0.67612616,2003.0,2002.8,19.493]
[1743121188152,0.67612616,2003.0,2002.8,15.16706989]
[1743121188366,8.69368517,2003.0,2002.8,14.5]
[1743121188550,5.75806,2002.9,2002.5,4.99368]
[1743121188864,3.02490901,2002.8,2002.5,4.99368]
[1743121189169,3.70099325,2002.8,2002.5,4.99368]
[1743121189355,3.70099325,2002.8,2002.5,9.98733]
[1743121190448,3.70099325,2002.8,2002.5,4.99365]
[1743121191346,8.69403325,2002.8,2002.5,4.99365]
[1743121191540,3.70099325,2002.8,2002.5,4.99365]
[1743121192533,0.67608424,2002.8,2002.5,4.99365]
[1743121192838,5.75812,2002.9,2002.5,4.99365]
[1743121193155,0.67608424,2002.8,2002.5,4.99365]
[1743121193324,5.75812,2002.9,2002.5,4.99365]
[1743121193522,0.67608424,2002.8,2002.5,4.99365]
[1743121193719,5.75812,2002.9,2002.5,4.99365]
[1743121194052,0.67608424,2002.8,2002.5,4.99365]
[1743121195055,7.1356759,2002.9,2002.5,4.99365]
[1743121195235,0.67606328,2002.7,2002.5,4.99365]
[1743121195438,5.75812,2002.9,2002.5,4.99365]
[1743121195952,0.67608424,2002.8,2002.5,4.99365]
[1743121196153,5.75812,2002.9,2002.5,4.99365]
[1743121196354,0.67608424,2002.8,2002.5,4.99365]
[1743121196554,7.1356759,2002.9,2002.5,4.99365]
[1743121196854,0.67608424,2002.8,2002.5,4.99365]
[1743121197227,5.75812,2002.9,2002.5,4.99365]
[1743121197468,0.67679761,2002.7,2002.5,4.99365]
[1743121197626,5.75812,2002.9,2002.5,4.99365]
[1743121197826,0.67677665,2002.6,2002.5,4.99365]
[1743121198029,5.75812,2002.9,2002.5,4.99365]
[1743121198536,0.67681857,2002.8,2002.5,4.99365]
[1743121198748,5.75812,2002.9,2002.5,4.99365]
[1743121198952,0.67681857,2002.8,2002.5,4.99365]
[1743121199157,5.75812,2002.9,2002.5,4.99365]
[1743121199349,8.69475758,2002.8,2002.4,4.9938]
[1743121199758,8.69475758,2002.8,2002.5,4.99373]
[1743121200058,3.70172758,2002.8,2002.5,4.99373]
[1743121201556,3.70172758,2002.8,2002.5,9.98734]
[1743121201732,0.67681857,2002.8,2002.5,4.99361]
[1743121202057,5.75812,2002.9,2002.5,4.99361]
[1743121202231,0.67679761,2002.7,2002.5,4.99361]
[1743121202424,4.99304,2002.8,2002.5,4.99361]
[1743121202628,5.75812,2002.9,2002.5,4.99361]
[1743121202629,0.67677665,2002.6,2002.5,4.99361]
[1743121202829,8.75813,2002.9,2002.5,5.992369]
[1743121203158,8.75813,2002.9,2002.5,4.99361]
[1743121203459,0.67681857,2002.8,2002.5,4.99361]
[1743121203859,8.75813,2002.9,2002.5,4.99361]
[1743121204357,5.66984857,2002.8,2002.4,4.99398]
[1743121204562,8.69475758,2002.8,2002.4,4.99398]
[1743121205123,8.69475758,2002.8,2002.5,4.99373]
[1743121205953,8.69475758,2002.8,2002.4,6.458051]
[1743121206258,8.69475758,2002.8,2002.4,6.457971]
[1743121206456,8.69475758,2002.8,2002.5,4.99374]
[1743121208064,3.70172758,2002.8,2002.5,4.99374]
[1743121209734,8.69478758,2002.8,2002.4,4.99387]
[1743121210055,4.99326,2002.7,2002.4,4.99387]
[1743121210561,0.67656252,2002.6,2002.4,4.99387]
[1743121210853,0.67656252,2002.6,2002.4,6.457976]
[1743121211263,8.01797901,2002.8,2002.4,6.457976]
[1743121211566,8.01797901,2002.8,2002.4,4.99387]
[1743121211861,0.67655289,2002.7,2002.4,4.99387]
[1743121212562,0.67655289,2002.7,2002.5,4.99373]
[1743121212762,13.75099,2002.9,2002.5,4.99373]
[1743121212763,8.75808,2002.9,2002.5,4.99373]
[1743121212934,0.67657385,2002.8,2002.5,4.99373]
[1743121213127,8.75808,2002.9,2002.5,10.98608]
[1743121213332,0.67666563,2002.8,2002.7,4.99325]
[1743121213563,3.0,2003.0,2002.6,4.99347]
[1743121213763,0.67668659,2002.9,2002.6,9.98683]
[1743121213963,0.67668659,2002.9,2002.6,11.3878799]
[1743121214140,0.67668659,2002.9,2002.6,6.3944099]
[1743121214662,8.83109901,2002.8,2002.4,4.9939]
[1743121215158,0.67664467,2002.7,2002.4,4.99376]
[1743121216254,0.67664467,2002.7,2002.4,0.04993426]
[1743121216558,0.67664467,2002.7,2002.5,4.9936]
[1743121218330,0.67664467,2002.7,2002.5,9.98724]
[1743121218538,0.67664467,2002.7,2002.5,10.99095743]
[1743121218736,4.99279,2002.9,2002.5,10.99095743]
[1743121218936,0.67681857,2002.8,2002.5,9.98724]
[1743121219238,4.99279,2002.9,2002.5,9.98724]
[1743121219437,0.6767976,2002.7,2002.5,9.98724]
[1743121219661,4.99279,2002.9,2002.5,9.98724]
[1743121219835,0.67677664,2002.6,2002.5,9.98724]
[1743121220036,4.99279,2002.9,2002.5,10.985964]
[1743121220257,0.67677664,2002.6,2002.5,9.98724]
[1743121220566,0.67677664,2002.6,2002.5,4.9936]
[1743121220767,9.98569,2002.9,2002.5,4.9936]
[1743121220768,4.99279,2002.9,2002.5,4.9936]
[1743121220946,0.67681857,2002.8,2002.5,4.9936]
[1743121221270,4.99279,2002.9,2002.5,9.98721]
[1743121221436,0.6767976,2002.7,2002.5,9.98721]
[1743121221772,0.67677664,2002.6,2002.5,5.992321]
[1743121221937,4.99302,2002.8,2002.5,4.9936]
[1743121222277,0.6767976,2002.7,2002.5,4.9936]
[1743121222888,0.6767976,2002.7,2002.4,5.04385426]
[1743121223053,0.6767976,2002.7,2002.4,10.03772426]
[1743121223250,0.6767976,2002.7,2002.4,4.99387]
[1743121224187,5.6700776,2002.7,2002.4,4.99387]
[1743121225370,5.6700776,2002.7,2002.3,9.98835]
[1743121225589,5.6700776,2002.7,2002.3,11.507485]
[1743121226971,5.6700776,2002.7,2002.4,4.99399]
[1743121227785,0.6767976,2002.7,2002.4,4.99399]
[1743121229745,5.6700976,2002.7,2002.4,4.99399]
[1743121232597,5.6700976,2002.7,2002.3,6.513335]
[1743121233469,5.6700976,2002.7,2002.3,4.9942]
[1743121234307,3.84000901,2002.6,2002.0,4.99489]
[1743121234599,5.79121609,2002.5,2002.1,4.99466]
[1743121234777,5.79121609,2002.5,2002.1,9.98924]
[1743121234976,10.78516609,2002.5,2002.1,6.458104]
[1743121235181,10.78516609,2002.5,2002.3,4.99413]
[1743121235182,0.79722609,2002.5,2002.3,4.99413]
[1743121235779,0.79722609,2002.5,2002.2,4.99442]
[1743121236098,0.79722609,2002.5,2002.4,4.994]
[1743121236493,8.7858,2002.8,2002.4,4.994]
[1743121236700,0.79661416,2002.5,2002.4,4.994]
[1743121236866,13.77903,2002.8,2002.4,5.992806]
[1743121237072,0.79661416,2002.5,2002.4,5.992806]
[1743121237274,8.7858,2002.8,2002.4,5.992806]
[1743121237599,3.7927,2002.8,2002.5,4.99364]
[1743121237805,0.79664403,2002.7,2002.5,4.99364]
[1743121239505,0.79664403,2002.7,2002.4,5.992726]
[1743121243008,0.79664403,2002.7,2002.5,4.9937]
[1743121243193,0.79664403,2002.7,2002.6,4.9935]
[1743121243395,5.81666,2003.1,2002.7,4.99303]
[1743121243703,0.79690297,2003.0,2002.4,3.02490901]
[1743121243908,5.78943297,2003.0,2002.7,4.99317]
[1743121245306,0.8243,2002.9,2002.6,4.99344]
[1743121245611,3.02490901,2002.7,2002.4,4.99392]
[1743121245806,1.62114325,2002.6,2002.3,9.64019]
[1743121246194,6.61473325,2002.6,2002.3,4.646]
[1743121246581,8.01879901,2002.5,2002.2,14.5]
[1743121246882,0.79751701,2002.4,2002.2,19.4945]
[1743121249605,0.79751701,2002.4,2002.2,19.49436]
[1743121250216,0.79751701,2002.4,2002.2,4.99436]
[1743121250531,1.63041701,2002.4,2002.1,4.99475]
[1743121250815,1.63041701,2002.4,2002.2,14.5]
[1743121251217,1.63041701,2002.4,2002.2,19.49447]
[1743121253025,0.79751701,2002.4,2002.2,26.937736]
[1743121253188,5.80161,2002.6,2002.2,21.943266]
[1743121253388,0.79630814,2002.5,2002.2,19.49436]
[1743121253787,8.82725901,2002.3,2002.2,14.5]
[1743121254090,5.80333,2002.0,2001.7,3.48351096]
[1743121254410,0.79543845,2001.9,2001.7,3.48351096]
[1743121254593,5.79068845,2001.9,2001.8,14.5]
[1743121254793,5.8036,2001.8,2001.7,3.48351096]
[1743121254993,8.82850901,2001.8,2001.7,3.48351096]
[1743121255197,9.62288777,2001.8,2001.7,3.48351096]
[1743121255394,11.08470155,2001.8,2001.7,3.48351096]
[1743121262005,14.08470155,2001.8,2001.7,17.98351096]
[1743121262208,14.08470155,2001.8,2001.7,3.48351096]
[1743121264933,0.79437876,2001.8,2001.7,3.48351096]
[1743121265122,0.79437876,2001.8,2001.7,8.47926096]
[1743121265296,7.9949,2002.1,2001.7,3.48351096]
[1743121265503,0.72385185,2001.8,2001.7,3.48351096]
[1743121265738,3.02490901,2002.2,2001.7,3.48351096]
[1743121265739,3.0,2002.0,2001.7,8.47925096]
[1743121266032,3.0,2002.1,2001.8,4.99538]
[1743121266220,0.72389206,2002.0,2001.8,6.3428431]
[1743121266411,8.01941901,2002.2,2001.8,6.3428431]
[1743121266611,0.72489756,2002.1,2001.8,6.3428431]
[1743121267428,0.72489756,2002.1,2001.9,4.99523]
[1743121269133,0.72489756,2002.1,2001.9,19.49523]
[1743121269332,0.72489756,2002.1,2001.9,4.99523]
[1743121269830,0.72489756,2002.1,2001.8,20.8428931]
[1743121270338,8.84339901,2002.0,2001.7,3.48351096]
[1743121270630,3.02490901,2002.0,2001.7,8.47917096]
[1743121270834,0.724902,2001.9,2001.7,22.97917096]
[1743121271036,0.724902,2001.9,2001.7,17.98351096]
[1743121271529,0.724902,2001.9,2001.7,22.97923096]
[1743121271838,4.9948,2002.1,2001.7,22.97923096]
[1743121272013,0.72492038,2002.0,2001.7,22.97923096]
[1743121272208,1.49302038,2002.0,2001.7,8.47923096]
[1743121276116,1.49302038,2002.0,2001.8,4.99549]
[1743121276338,1.49302038,2002.0,2001.8,14.5]
[1743121277036,0.72492038,2002.0,2001.8,14.5]
[1743121277435,0.72492038,2002.0,2001.9,4.99525]
[1743121277618,4.99427,2002.3,2001.9,4.99525]
[1743121277939,2.01002578,2002.2,2001.9,4.99506]
[1743121278243,3.69046689,2002.2,2001.9,4.99506]
[1743121278436,8.68497689,2002.2,2001.8,4.99548]
[1743121278738,5.77029,2002.1,2001.9,14.5]
[1743121279136,0.66552627,2002.0,2001.9,14.5]
[1743121280440,0.66552627,2002.0,2001.8,4.99548]
[1743121280938,0.66552627,2002.0,2001.8,19.49548]
[1743121281142,0.66552627,2002.0,2001.8,14.5]
[1743121281734,4.99526,2001.9,2001.7,3.48351096]
[1743121282144,0.66549637,2001.8,2001.7,17.98351096]
[1743121283642,8.01996901,2002.0,2001.7,17.98351096]
[1743121283843,0.66551132,2001.9,2001.7,17.98351096]
[1743121284437,0.66551132,2001.9,2001.8,4.9955]
[1743121284613,3.0,2002.1,2001.9,4.99514]
[1743121284813,0.66552627,2002.0,2001.9,4.99514]
[1743121285714,0.66552627,2002.0,2001.9,14.5]
[1743121290442,0.66552627,2002.0,2001.8,4.99532]
[1743121290946,0.66552627,2002.0,2001.8,19.49532]
[1743121291521,0.66552627,2002.0,2001.8,14.5]
[1743121292031,0.66552627,2002.0,2001.7,8.47918096]
[1743121292226,8.02040901,2001.8,2001.7,3.48351096]
[1743121292430,6.45601051,2001.8,2001.7,3.48351096]
[1743121292620,4.99577,2001.7,2001.4,4.99641]
[1743121292821,0.6659806,2001.6,2001.4,4.99641]
[1743121293023,4.99601,2001.6,2001.2,4.99699]
[1743121293346,4.99601,2001.6,2001.2,9.99366]
[1743121293541,3.02490901,2001.7,2001.3,4.99666]
[1743121293542,8.02088901,2001.7,2001.3,4.99666]
[1743121293742,0.66586936,2001.5,2001.3,4.99666]
[1743121293952,13.01680901,2001.7,2001.3,4.99666]
[1743121294152,0.6658544,2001.4,2001.2,4.9968]
[1743121294452,0.6658544,2001.4,2001.1,4.99723]
[1743121294453,3.02490901,2001.7,2001.3,4.99658]
[1743121294619,0.66588432,2001.6,2001.4,4.99639]
[1743121294825,3.0,2001.7,2001.4,4.99639]
[1743121295232,0.66588432,2001.6,2001.4,4.99639]
[1743121295448,0.66588432,2001.6,2001.0,19.49746]
[1743121295449,0.8044,2001.5,2001.0,19.49746]
[1743121295647,0.8044,2001.5,2001.0,14.5]
[1743121295648,4.99681,2001.3,2001.0,14.5]
[1743121295951,5.66216349,2001.2,2001.0,14.5]
[1743121296262,5.66216349,2001.2,2000.9,4.99768]
[1743121296454,4.9974,2001.1,2000.7,4.99824]
[1743121296659,0.66461821,2001.0,2000.8,4.99775]
[1743121296951,4.99688,2001.3,2000.9,4.99775]
[1743121298444,4.99688,2001.3,2000.9,9.9952]
[1743121298651,0.7503,2001.2,2000.9,4.99757]
[1743121299860,8.77222901,2001.2,2000.9,4.99757]
[1743121300058,3.77520901,2001.2,2000.9,4.99757]
[1743121301427,8.77224901,2001.2,2000.9,4.99757]
[1743121301961,8.77224901,2001.2,2000.8,4.99798]
[1743121302173,4.99725,2001.1,2000.7,19.49823]
[1743121302330,4.99725,2001.1,2000.7,24.49625]
[1743121302534,4.99725,2001.1,2000.8,4.99798]
[1743121303144,4.99725,2001.1,2000.7,19.49802]
[1743121303341,4.66209908,2001.2,2001.0,4.99748]
[1743121303545,7.99684,2001.3,2000.9,4.99769]
[1743121304147,12.99377,2001.3,2000.9,4.99769]
[1743121304957,4.99703,2001.2,2000.9,4.99769]
[1743121307057,8.02193901,2001.2,2000.9,4.99769]
[1743121307467,3.02490901,2001.2,2000.9,4.99769]
[1743121308990,8.02192901,2001.2,2000.8,4.99798]
[1743121309138,9.70444791,2001.2,2000.8,4.99783]
[1743121309342,3.02490901,2001.0,2000.7,4.99817]
[1743121309665,0.66122675,2000.9,2000.7,4.99817]
[1743121309866,3.0,2001.1,2000.8,4.998]
[1743121310069,0.66124172,2001.0,2000.9,4.99767]
[1743121310774,0.66124172,2001.0,2000.8,4.998]
[1743121310983,0.66124172,2001.0,2000.7,4.99824]
[1743121311270,0.66124172,2001.0,2000.7,4.99814]
[1743121311565,0.66124172,2001.0,2000.8,4.99787]
[1743121312255,0.66124172,2001.0,2000.9,4.99775]
[1743121312668,0.66124172,2001.0,2000.8,4.9978]
[1743121313173,0.66124172,2001.0,2000.7,4.99824]
[1743121313360,1.44484172,2001.0,2000.7,4.99824]
[1743121314578,1.44484172,2001.0,2000.8,4.99798]
[1743121314766,0.66124172,2001.0,2000.8,4.99798]
[1743121320153,0.66124172,2001.0,2000.9,4.99775]
[1743121320359,0.66124172,2001.0,2000.8,4.99798]
[1743121322577,0.26354813,2001.0,2000.8,4.99798]
[1743121322778,0.62749884,2001.0,2000.8,4.99798]
[1743121323544,0.62749884,2001.0,2000.8,5.997521]
[1743121324783,0.62749884,2001.0,2000.9,4.99775]
[1743121325102,0.62749884,2001.0,2000.8,5.997521]
[1743121325103,5.77955,2001.7,2001.1,4.99707]
[1743121325377,5.59414421,2001.6,2001.2,4.99678]
[1743121325550,3.0,2001.5,2001.2,4.99678]
[1743121325970,0.59798665,2001.4,2001.2,4.99678]
[1743121326181,0.59798665,2001.4,2001.3,4.99675]
[1743121326675,0.59800386,2001.4,2001.2,5.996182]
[1743121326887,7.99611,2001.6,2001.2,5.996182]
[1743121327179,3.62367464,2001.5,2001.2,5.996182]
[1743121327572,3.62367464,2001.5,2001.2,5.996382]
[1743121329684,3.62367464,2001.5,2001.1,4.99707]
[1743121329905,0.7978,2001.4,2001.1,9.9942]
[1743121330059,0.59877701,2001.3,2001.1,4.99707]
[1743121330256,0.7978,2001.4,2001.1,4.99707]
[1743121330456,0.59877701,2001.3,2001.1,4.99707]
[1743121330667,0.7978,2001.4,2001.1,5.496777]
[1743121330868,0.59877701,2001.3,2001.1,5.496777]
[1743121331168,0.7978,2001.4,2001.1,5.496777]
[1743121331356,0.59875861,2001.2,2001.1,5.496777]
[1743121331552,0.7978,2001.4,2001.1,5.496777]
[1743121331758,0.59875861,2001.2,2001.1,5.496777]
[1743121331985,0.7978,2001.4,2001.1,5.496777]
[1743121332182,0.59875861,2001.2,2001.1,4.99707]
[1743121332386,0.7978,2001.4,2001.1,4.99707]
[1743121332589,0.59875861,2001.2,2001.1,4.99707]
[1743121332777,0.7978,2001.4,2001.1,4.99707]
[1743121332967,0.59876205,2001.2,2001.1,4.99707]
[1743121333289,0.59875861,2001.2,2001.1,5.996525]
[1743121333455,0.7978,2001.4,2001.1,5.996525]
[1743121333659,0.59877357,2001.3,2001.1,5.996525]
[1743121333861,0.7978,2001.4,2001.1,5.996525]
[1743121334201,0.59877357,2001.3,2001.0,4.99739]
[1743121334492,0.7978,2001.4,2001.0,4.99739]
[1743121334660,0.59877701,2001.3,2001.0,4.99739]
[1743121334859,0.7978,2001.4,2001.0,4.99739]
[1743121335088,0.59877701,2001.3,2001.0,4.99739]
[1743121335289,0.7978,2001.4,2001.0,4.99739]
[1743121335490,1.48069134,2001.3,2001.0,4.99739]
[1743121337672,0.59878044,2001.3,2001.1,4.99721]
[1743121337877,3.8293,2001.6,2001.3,4.99664]
[1743121338190,0.59930827,2001.5,2001.4,4.99638]
[1743121338569,3.0,2001.7,2001.4,4.99638]
[1743121338770,0.59936726,2001.5,2001.4,4.99638]
[1743121338970,3.0,2001.7,2001.4,4.99638]
[1743121339170,0.59936726,2001.5,2001.4,4.99638]
[1743121339369,3.0,2001.7,2001.4,4.99638]
[1743121339569,0.59936726,2001.5,2001.4,4.99638]
[1743121339798,3.0,2001.7,2001.4,4.99638]
[1743121339976,0.59936726,2001.5,2001.4,4.99638]
[1743121340176,3.0,2001.7,2001.4,4.99638]
[1743121340384,0.5993707,2001.5,2001.4,4.99638]
[1743121340571,8.17054091,2001.7,2001.4,4.99638]
[1743121340771,0.59937757,2001.5,2001.2,4.99697]
[1743121340972,13.16649091,2001.7,2001.2,4.99697]
[1743121341182,0.59935917,2001.4,2001.2,4.99697]
[1743121341397,4.996,2001.6,2001.2,4.99697]
[1743121341884,1.41588787,2001.5,2001.2,4.99697]
[1743121343207,1.41588787,2001.5,2001.3,4.99671]
[1743121343805,1.41588787,2001.5,2001.2,4.99693]
[1743121347080,1.41588787,2001.5,2001.2,9.99383]
[1743121347518,1.41588787,2001.5,2001.2,4.9969]
[1743121347694,1.41588787,2001.5,2001.2,9.99375]
[1743121348784,1.41588787,2001.5,2001.2,4.99685]
[1743121350088,0.59938787,2001.5,2001.2,4.99685]
[1743121350313,13.94533091,2001.7,2001.2,4.99685]
[1743121350492,1.187334,2001.6,2001.2,4.99685]
[1743121351590,1.187334,2001.6,2001.3,4.99675]
[1743121351796,1.187334,2001.6,2001.2,4.99685]
[1743121353018,6.183374,2001.6,2001.2,4.99685]
[1743121355620,0.8142,2001.5,2001.2,4.99685]
[1743121355984,0.59991557,2001.4,2001.2,4.99685]
[1743121359027,0.59991557,2001.4,2001.1,4.99724]
[1743121359821,2.10178266,2001.4,2001.0,4.99748]
[1743121360029,2.10178266,2001.4,2000.8,4.649]
[1743121360223,0.59991557,2001.4,2001.1,9.99413]
[1743121361342,0.59991557,2001.4,2001.2,4.99686]
[1743121361499,3.8244,2001.7,2001.3,4.99675]
[1743121361689,3.8244,2001.7,2001.4,4.99645]
[1743121361894,0.59994548,2001.6,2001.4,4.99645]
[1743121362095,3.8244,2001.7,2001.4,4.99645]
[1743121362439,0.59994548,2001.6,2001.4,4.99645]
[1743121362796,3.8244,2001.7,2001.4,4.99645]
[1743121362997,0.59980611,2001.5,2001.4,4.99645]
[1743121363230,3.8244,2001.7,2001.4,4.99645]
[1743121363436,0.59980611,2001.5,2001.4,4.99645]
[1743121363934,3.8244,2001.7,2001.4,4.99645]
[1743121364133,0.59982107,2001.6,2001.4,4.99645]
[1743121364291,3.8244,2001.7,2001.3,4.99667]
[1743121364591,8.82015,2001.7,2001.3,4.99667]
[1743121364793,0.59982107,2001.6,2001.3,4.99667]
[1743121365342,0.59980611,2001.5,2001.3,4.99667]
[1743121365861,4.99609,2001.6,2001.2,19.49696]
[1743121366010,0.7796,2001.5,2001.1,9.99422]
[1743121366209,0.7796,2001.5,2001.1,4.99704]
[1743121366210,3.23741413,2001.5,2001.1,4.99704]
[1743121366515,8.23375413,2001.5,2001.1,9.99412]
[1743121367026,3.23741413,2001.5,2001.1,4.99704]
[1743121367240,3.23741413,2001.5,2001.1,9.9941]
[1743121367529,1.37940611,2001.5,2001.1,9.9941]
[1743121367727,1.37940611,2001.5,2001.2,4.99689]
[1743121371259,6.37573611,2001.5,2001.1,19.49723]
[1743121371759,8.85049901,2001.4,2001.0,4.99738]
[1743121372060,5.82659,2001.0,2000.6,4.99829]
[1743121372351,0.59957656,2000.9,2000.6,4.99829]
[1743121375673,0.59957656,2000.9,2000.6,19.49829]
[1743121377774,5.59747656,2000.9,2000.6,14.5]
[1743121379842,0.7979,2000.7,2000.3,7.95881972]
[1743121380073,5.79631,2000.7,2000.3,7.95877972]
[1743121380270,0.59928829,2000.6,2000.4,4.99892]
[1743121380454,0.59928829,2000.6,2000.4,19.49892]
[1743121380851,0.59928829,2000.6,2000.4,4.99892]
[1743121381052,0.59928829,2000.6,2000.3,7.95880972]
[1743121382280,0.59928829,2000.6,2000.3,12.95794972]
[1743121382577,0.59928829,2000.6,2000.3,12.95784972]
[1743121382972,0.59928829,2000.6,2000.3,16.16913469]
[1743121383159,0.59928829,2000.6,2000.4,4.99895]
[1743121384165,0.59928829,2000.6,2000.4,4.99891]
[1743121384487,0.59928829,2000.6,2000.5,4.99875]
[1743121384681,0.59928829,2000.6,2000.4,4.99891]
[1743121384851,3.0,2000.7,2000.5,14.5]
[1743121386465,3.0,2000.7,2000.5,19.4987]
[1743121386783,3.0,2000.8,2000.4,1.91939237]
[1743121386959,7.99803,2000.8,2000.4,6.91819237]
[1743121387159,7.99803,2000.8,2000.5,4.99872]
[1743121387882,3.0,2000.8,2000.5,4.99861]
[1743121389767,3.0,2000.8,2000.6,14.5]
[1743121390554,3.0,2000.8,2000.5,9.99723]
[1743121391386,0.7884,2000.9,2000.6,4.99841]
[1743121391593,0.7884,2000.9,2000.7,4.99816]
[1743121391908,0.7884,2000.9,2000.6,4.99841]
[1743121392091,5.78616,2000.9,2000.6,4.99841]
[1743121393592,5.78616,2000.9,2000.5,4.99868]
[1743121394862,0.7781,2000.7,2000.5,4.99868]
[1743121396294,0.7781,2000.7,2000.5,4.99862]
[1743121396470,0.7781,2000.7,2000.5,9.99722]
[1743121396677,0.7781,2000.7,2000.5,4.9986]
[1743121397084,11.83323901,2001.0,2000.6,4.9985]
[1743121397263,13.98129091,2001.0,2000.6,4.9985]
[1743121397464,18.97898091,2001.0,2000.6,4.9985]
[1743121398192,4.99778,2000.9,2000.5,4.99873]
[1743121398375,0.8108,2000.8,2000.5,4.99873]
[1743121399477,0.8108,2000.8,2000.5,9.99733]
[1743121399694,0.59624574,2000.7,2000.5,9.99733]
[1743121399995,0.59624574,2000.7,2000.5,12.74302097]
[1743121400385,0.59624574,2000.7,2000.6,4.9985]
[1743121402570,0.8104,2000.9,2000.6,4.9985]
[1743121402771,0.59641629,2000.8,2000.6,4.9985]
[1743121403092,0.59641629,2000.8,2000.5,4.9986]
[1743121403469,0.59641629,2000.8,2000.5,9.99722]
[1743121403670,0.59641629,2000.8,2000.5,4.9986]
[1743121403871,3.6213253,2000.8,2000.4,4.99892]
[1743121404207,0.8104,2000.7,2000.4,4.99892]
[1743121404372,0.8104,2000.7,2000.3,7.95866972]
[1743121404373,8.02342901,2000.6,2000.3,2.95957972]
[1743121404580,8.61988469,2000.6,2000.3,2.95957972]
[1743121405595,3.62136469,2000.6,2000.3,7.95876972]
[1743121406002,8.61995469,2000.6,2000.3,2.95957972]
[1743121406307,8.84700901,2000.4,2000.3,2.95957972]
[1743121406494,8.84700901,2000.4,2000.0,19.49977]
[1743121406673,4.99926,2000.3,2000.0,19.49977]
[1743121406875,4.99928,2000.3,2000.0,14.5]
[1743121407073,0.59547761,2000.2,1999.9,5.00006]
[1743121407395,8.84700901,2000.4,1999.9,5.00006]
[1743121407396,8.84700901,2000.4,2000.0,4.99997]
[1743121407602,1.50664439,2000.3,2000.0,4.99997]
[1743121407798,5.59475259,2000.3,1999.9,19.5001]
[1743121407991,0.59549259,2000.3,2000.0,4.99997]
[1743121408188,8.84700901,2000.4,2000.0,4.99997]
[1743121408395,0.59490094,2000.3,2000.0,4.99997]
[1743121408584,8.84700901,2000.4,2000.0,4.99997]
[1743121408785,0.59490094,2000.3,2000.0,4.99997]
[1743121408987,3.84800901,2000.4,2000.0,9.99968]
[1743121409183,0.59490094,2000.3,2000.0,4.99979]
[1743121409411,8.84703901,2000.4,2000.0,4.99979]
[1743121409598,0.59488596,2000.2,2000.0,4.99979]
[1743121409899,8.84703901,2000.4,2000.0,4.99979]
[1743121410100,0.59487098,2000.1,2000.0,4.99979]
[1743121410307,13.84616901,2000.4,2000.0,4.99979]
[1743121410495,0.59487098,2000.1,2000.0,4.99979]
[1743121410695,8.84703901,2000.4,2000.0,4.99979]
[1743121410901,0.59487098,2000.1,2000.0,4.99979]
[1743121411088,10.56917252,2000.4,2000.0,4.99979]
[1743121411289,0.59487098,2000.1,2000.0,4.99979]
[1743121411499,15.56837252,2000.4,2000.0,4.99979]
[1743121411700,0.59487098,2000.1,2000.0,19.49979]
[1743121412010,8.84703901,2000.4,2000.0,19.49979]
[1743121412210,0.59490094,2000.3,2000.0,19.49979]
[1743121412378,10.66835725,2000.4,2000.0,19.49979]
[1743121412709,0.59315728,2000.3,2000.0,19.49979]
[1743121412906,0.59315728,2000.3,2000.1,4.99972]
[1743121413210,8.84701901,2000.4,2000.1,4.99972]
[1743121413412,10.56915052,2000.4,2000.1,4.99972]
[1743121413908,0.5931423,2000.2,2000.1,4.99972]
[1743121414108,8.84701901,2000.4,2000.1,4.99972]
[1743121414280,0.5931423,2000.2,2000.1,4.99972]
[1743121414483,3.0,2000.4,2000.1,4.99972]
[1743121415012,0.59315728,2000.3,2000.1,4.99972]
[1743121415179,3.0,2000.4,2000.1,7.449685]
[1743121415512,3.0,2000.4,2000.1,4.99972]
[1743121415513,0.59315728,2000.3,2000.1,4.99972]
[1743121415883,3.0,2000.4,2000.1,4.99972]
[1743121416409,0.59315728,2000.3,2000.1,4.99972]
[1743121416609,3.0,2000.4,2000.1,4.99972]
[1743121416813,0.59315728,2000.3,2000.1,4.99972]
[1743121416978,3.0,2000.4,2000.1,4.99972]
[1743121417180,0.59315728,2000.3,2000.1,4.99972]
[1743121417610,3.0,2000.4,2000.1,4.99972]
[1743121417808,0.59315728,2000.3,2000.2,4.99946]
[1743121418108,3.7834,2000.6,2000.3,4.99912]
[1743121418498,0.59303152,2000.5,2000.3,4.99912]
[1743121420307,0.59303152,2000.5,2000.3,14.5]
[1743121420508,0.59303152,2000.5,2000.2,4.99946]
[1743121421389,0.59303152,2000.5,2000.2,9.99878]
[1743121423845,0.59303152,2000.5,2000.3,4.99907]
[1743121424122,0.59303152,2000.5,2000.3,9.99819]
[1743121424315,0.59303152,2000.5,2000.4,4.999]
[1743121424831,0.59365435,2000.5,2000.4,9.99785]
[1743121424993,8.02290901,2000.8,2000.4,9.99785]
[1743121425195,0.5936843,2000.7,2000.5,4.99874]